[Event "Chessable Masters - Torneo preliminare"]
[White "Sarana, Alexey"]
[Black "Terry, Renato"]
[WhiteFideId "24133795"]
[BlackFideId "3803457"]
[WhiteElo "2643"]
[BlackElo "2472"]
[Result "0-1"]
[Round "5"]
[TimeControl "600+2"]
[Date "2023.03.13"]
[WhiteClock "0:05:37"]
[BlackClock "0:00:15"]

1. c4 {[%clk 0:10:01]}  e5 {[%clk 0:09:57]} 2. Nf3 {[%clk 0:10:03]}  Nc6 {[%clk 0:09:57]} 3. g3 {[%clk 0:10:03]}  g6 {[%clk 0:09:29]} 4. Nc3 {[%clk 0:10:00]}  Bg7 {[%clk 0:09:30]} 5. Bg2 {[%clk 0:10:01]}  d6 {[%clk 0:09:32]} 6. Rb1 {[%clk 0:10:01]}  Be6 {[%clk 0:09:13]} 7. d3 {[%clk 0:09:54]}  h6 {[%clk 0:09:14]} 8. b4 {[%clk 0:09:53]}  Qd7 {[%clk 0:09:05]} 9. b5 {[%clk 0:09:52]}  Nd8 {[%clk 0:09:05]} 10. e4 {[%clk 0:09:49]}  Bh3 {[%clk 0:08:44]} 11. O-O {[%clk 0:09:50]}  Bxg2 {[%clk 0:08:43]} 12. Kxg2 {[%clk 0:09:51]}  Ne7 {[%clk 0:08:44]} 13. Nd5 {[%clk 0:09:50]}  Ne6 {[%clk 0:08:21]} 14. Be3 {[%clk 0:09:46]}  c6 {[%clk 0:07:23]} 15. bxc6 {[%clk 0:09:44]}  bxc6 {[%clk 0:07:25]} 16. Nxe7 {[%clk 0:09:39]}  Qxe7 {[%clk 0:07:26]} 17. Qa4 {[%clk 0:09:39]}  Qd7 {[%clk 0:07:24]} 18. Rb4 {[%clk 0:09:36]}  O-O {[%clk 0:07:18]} 19. Rfb1 {[%clk 0:09:36]}  Rfc8 {[%clk 0:07:17]} 20. Rb7 {[%clk 0:09:30]}  Rc7 {[%clk 0:07:18]} 21. Rb8+ {[%clk 0:09:19]}  Rxb8 {[%clk 0:07:16]} 22. Rxb8+ {[%clk 0:09:21]}  Kh7 {[%clk 0:07:08]} 23. h3 {[%clk 0:09:22]}  d5 {[%clk 0:06:31]} 24. cxd5 {[%clk 0:08:52]}  cxd5 {[%clk 0:06:33]} 25. Qxd7 {[%clk 0:08:53]}  Rxd7 {[%clk 0:06:34]} 26. Rb5 {[%clk 0:08:55]}  d4 {[%clk 0:06:15]} 27. Bd2 {[%clk 0:08:55]}  f6 {[%clk 0:06:16]} 28. Bb4 {[%clk 0:08:50]}  Bf8 {[%clk 0:06:15]} 29. Bxf8 {[%clk 0:08:50]}  Nxf8 {[%clk 0:06:17]} 30. Nd2 {[%clk 0:08:51]}  Rc7 {[%clk 0:06:11]} 31. Ra5 {[%clk 0:08:37]}  Ne6 {[%clk 0:06:02]} 32. Nb3 {[%clk 0:08:37]}  Kg7 {[%clk 0:06:00]} 33. Ra6 {[%clk 0:08:33]}  Kf7 {[%clk 0:06:01]} 34. Kf1 {[%clk 0:08:32]}  g5 {[%clk 0:05:51]} 35. Ke2 {[%clk 0:08:31]}  h5 {[%clk 0:05:52]} 36. Kd2 {[%clk 0:08:32]}  h4 {[%clk 0:05:36]} 37. Ke2 {[%clk 0:07:48]}  g4 {[%clk 0:04:53]} 38. hxg4 {[%clk 0:07:49]}  hxg3 {[%clk 0:04:55]} 39. Kf1 {[%clk 0:07:51]}  gxf2 {[%clk 0:04:28]} 40. Kxf2 {[%clk 0:07:53]}  Nf4 {[%clk 0:04:29]} 41. g5 {[%clk 0:07:41]}  Nh3+ {[%clk 0:03:32]} 42. Ke2 {[%clk 0:07:20]}  Nxg5 {[%clk 0:03:33]} 43. Na5 {[%clk 0:07:10]}  Rc2+ {[%clk 0:02:08]} 44. Kd1 {[%clk 0:07:11]}  Rxa2 {[%clk 0:02:05]} 45. Rxa7+ {[%clk 0:07:12]}  Kg6 {[%clk 0:02:07]} 46. Nc6 {[%clk 0:07:14]}  Rxa7 {[%clk 0:01:53]} 47. Nxa7 {[%clk 0:07:16]}  Ne6 {[%clk 0:01:41]} 48. Nc6 {[%clk 0:07:15]}  Kg5 {[%clk 0:01:41]} 49. Ne7 {[%clk 0:07:14]}  Nf4 {[%clk 0:01:30]} 50. Kd2 {[%clk 0:07:15]}  Ng6 {[%clk 0:01:32]} 51. Nd5 {[%clk 0:07:16]}  Nh4 {[%clk 0:01:32]} 52. Ne7 {[%clk 0:07:16]}  Kh6 {[%clk 0:01:25]} 53. Nd5 {[%clk 0:07:17]}  Kg7 {[%clk 0:01:26]} 54. Ke2 {[%clk 0:07:18]}  Kf7 {[%clk 0:01:27]} 55. Kd2 {[%clk 0:07:19]}  Ng6 {[%clk 0:01:27]} 56. Nc7 {[%clk 0:07:20]}  Ke7 {[%clk 0:01:28]} 57. Nd5+ {[%clk 0:07:21]}  Ke6 {[%clk 0:01:29]} 58. Nc7+ {[%clk 0:07:22]}  Kf7 {[%clk 0:01:31]} 59. Nd5 {[%clk 0:07:23]}  Ne7 {[%clk 0:01:32]} 60. Nc7 {[%clk 0:07:23]}  Nc8 {[%clk 0:01:30]} 61. Ke2 {[%clk 0:07:24]}  Nd6 {[%clk 0:01:31]} 62. Kf3 {[%clk 0:07:25]}  Nb7 {[%clk 0:01:31]} 63. Nd5 {[%clk 0:07:21]}  Nc5 {[%clk 0:01:32]} 64. Ke2 {[%clk 0:07:22]}  Ke6 {[%clk 0:01:32]} 65. Nc7+ {[%clk 0:07:24]}  Kd6 {[%clk 0:01:33]} 66. Ne8+ {[%clk 0:07:25]}  Ke7 {[%clk 0:01:35]} 67. Nc7 {[%clk 0:07:25]}  Na4 {[%clk 0:01:35]} 68. Nd5+ {[%clk 0:07:06]}  Ke6 {[%clk 0:01:36]} 69. Nc7+ {[%clk 0:07:07]}  Kd6 {[%clk 0:01:35]} 70. Ne8+ {[%clk 0:07:08]}  Ke7 {[%clk 0:01:37]} 71. Ng7 {[%clk 0:07:09]}  Nc5 {[%clk 0:01:33]} 72. Nf5+ {[%clk 0:07:09]}  Kd7 {[%clk 0:01:34]} 73. Ng7 {[%clk 0:07:10]}  Ne6 {[%clk 0:01:34]} 74. Nh5 {[%clk 0:07:06]}  Ke7 {[%clk 0:01:32]} 75. Ng3 {[%clk 0:07:07]}  Ng7 {[%clk 0:01:33]} 76. Kf3 {[%clk 0:07:05]}  Kf7 {[%clk 0:01:34]} 77. Nf1 {[%clk 0:06:48]}  Kg6 {[%clk 0:01:35]} 78. Nd2 {[%clk 0:06:41]}  Ne6 {[%clk 0:01:34]} 79. Nb3 {[%clk 0:06:34]}  Kg5 {[%clk 0:01:31]} 80. Ke2 {[%clk 0:06:32]}  Kg4 {[%clk 0:01:31]} 81. Na5 {[%clk 0:06:28]}  Kf4 {[%clk 0:01:23]} 82. Nc6 {[%clk 0:06:26]}  Ng5 {[%clk 0:01:20]} 83. Ne7 {[%clk 0:06:25]}  Ne6 {[%clk 0:01:08]} 84. Nd5+ {[%clk 0:06:25]}  Kg5 {[%clk 0:01:10]} 85. Kd2 {[%clk 0:06:27]}  Nf4 {[%clk 0:00:53]} 86. Ne7 {[%clk 0:06:27]}  Nh5 {[%clk 0:00:51]} 87. Ke2 {[%clk 0:06:27]}  Kg4 {[%clk 0:00:50]} 88. Ng8 {[%clk 0:06:26]}  Kf4 {[%clk 0:00:35]} 89. Kf2 {[%clk 0:06:13]}  Kg4 {[%clk 0:00:36]} 90. Ke2 {[%clk 0:06:14]}  Kg3 {[%clk 0:00:38]} 91. Nh6 {[%clk 0:06:01]}  Kf4 {[%clk 0:00:37]} 92. Kf2 {[%clk 0:05:56]}  Kg5 {[%clk 0:00:36]} 93. Nf7+ {[%clk 0:05:50]}  Kg6 {[%clk 0:00:37]} 94. Nd6 {[%clk 0:05:48]}  Nf4 {[%clk 0:00:38]} 95. Nf5 {[%clk 0:05:47]}  Nxd3+ {[%clk 0:00:39]} 96. Kf3 {[%clk 0:05:49]}  Nc5 {[%clk 0:00:36]} 97. Ne7+ {[%clk 0:05:50]}  Kf7 {[%clk 0:00:37]} 98. Nd5 {[%clk 0:05:51]}  Ke6 {[%clk 0:00:39]} 99. Nc7+ {[%clk 0:05:53]}  Kd6 {[%clk 0:00:40]} 100. Ne8+ {[%clk 0:05:54]}  Ke7 {[%clk 0:00:41]} 101. Nc7 {[%clk 0:05:55]}  Nb7 {[%clk 0:00:39]} 102. Nd5+ {[%clk 0:05:55]}  Kf7 {[%clk 0:00:40]} 103. Kg4 {[%clk 0:05:54]}  Nd6 {[%clk 0:00:41]} 104. Kf3 {[%clk 0:05:55]}  Kg6 {[%clk 0:00:39]} 105. Nc7 {[%clk 0:05:56]}  f5 {[%clk 0:00:37]} 106. exf5+ {[%clk 0:05:56]}  Kxf5 {[%clk 0:00:38]} 107. Nd5 {[%clk 0:05:56]}  e4+ {[%clk 0:00:36]} 108. Ke2 {[%clk 0:05:58]}  Nc4 {[%clk 0:00:34]} 109. Nb4 {[%clk 0:05:59]}  Kf4 {[%clk 0:00:32]} 110. Nd5+ {[%clk 0:05:58]}  Ke5 {[%clk 0:00:33]} 111. Nb4 {[%clk 0:06:00]}  Kd6 {[%clk 0:00:34]} 112. Kf2 {[%clk 0:06:00]}  d3 {[%clk 0:00:35]} 113. Na2 {[%clk 0:06:00]}  Ke5 {[%clk 0:00:31]} 114. Nc3 {[%clk 0:06:01]}  Kd4 {[%clk 0:00:24]} 115. Nb5+ {[%clk 0:06:02]}  Kc5 {[%clk 0:00:25]} 116. Nc3 {[%clk 0:06:04]}  e3+ {[%clk 0:00:22]} 117. Kf3 {[%clk 0:06:05]}  Kb4 {[%clk 0:00:23]} 118. Nd1 {[%clk 0:05:46]}  Kb3 {[%clk 0:00:16]} 119. Ke4 {[%clk 0:05:37]}  e2 {[%clk 0:00:15]} 0-1


[Site "Internet"]

[Event "Chessable Masters - Torneo preliminare"]
[White "Kramnik, Vladimir"]
[Black "Kamsky, Gata"]
[WhiteFideId "4101588"]
[BlackFideId "2000024"]
[WhiteElo "2756"]
[BlackElo "2630"]
[Result "1-0"]
[Round "5"]
[TimeControl "600+2"]
[Date "2023.03.13"]
[WhiteClock "0:03:41"]
[BlackClock "0:00:47"]

1. c4 {[%clk 0:10:01]}  Nf6 {[%clk 0:09:45]} 2. Nc3 {[%clk 0:10:01]}  g6 {[%clk 0:09:45]} 3. e4 {[%clk 0:09:57]}  d6 {[%clk 0:09:46]} 4. d4 {[%clk 0:09:58]}  Bg7 {[%clk 0:09:48]} 5. Be2 {[%clk 0:09:59]}  e5 {[%clk 0:09:48]} 6. Nf3 {[%clk 0:09:54]}  O-O {[%clk 0:09:48]} 7. O-O {[%clk 0:09:55]}  Nc6 {[%clk 0:09:48]} 8. d5 {[%clk 0:09:55]}  Ne7 {[%clk 0:09:48]} 9. b4 {[%clk 0:09:53]}  Ne8 {[%clk 0:09:49]} 10. c5 {[%clk 0:09:42]}  h6 {[%clk 0:08:54]} 11. a4 {[%clk 0:09:41]}  a5 {[%clk 0:08:43]} 12. Ba3 {[%clk 0:09:24]}  f5 {[%clk 0:08:40]} 13. Nd2 {[%clk 0:09:15]}  axb4 {[%clk 0:08:40]} 14. Bxb4 {[%clk 0:09:16]}  Rf7 {[%clk 0:07:42]} 15. Nc4 {[%clk 0:08:55]}  fxe4 {[%clk 0:06:51]} 16. cxd6 {[%clk 0:08:52]}  cxd6 {[%clk 0:06:32]} 17. Nxe4 {[%clk 0:08:40]}  Nf5 {[%clk 0:06:32]} 18. a5 {[%clk 0:08:32]}  Bf8 {[%clk 0:06:28]} 19. Nb6 {[%clk 0:08:19]}  Rb8 {[%clk 0:06:29]} 20. Bc3 {[%clk 0:07:29]}  Bd7 {[%clk 0:06:04]} 21. Rb1 {[%clk 0:07:14]}  Bg7 {[%clk 0:05:40]} 22. Bg4 {[%clk 0:06:58]}  Nc7 {[%clk 0:04:14]} 23. Qd3 {[%clk 0:06:00]}  Be8 {[%clk 0:04:05]} 24. Rfc1 {[%clk 0:05:23]}  Na6 {[%clk 0:03:58]} 25. Nc4 {[%clk 0:05:07]}  Bf8 {[%clk 0:03:02]} 26. Rb6 {[%clk 0:05:07]}  Bd7 {[%clk 0:03:00]} 27. Nexd6 {[%clk 0:04:34]}  Qg5 {[%clk 0:02:41]} 28. Bd2 {[%clk 0:04:17]}  Qxg4 {[%clk 0:02:36]} 29. Nxf7 {[%clk 0:04:15]}  Nh4 {[%clk 0:02:08]} 30. Qg3 {[%clk 0:04:15]}  Qh5 {[%clk 0:00:49]} 31. Nfxe5 {[%clk 0:04:01]}  Bf5 {[%clk 0:00:47]} 32. Ne3 {[%clk 0:03:41]} 1-0


[Site "Internet"]

[Event "Chessable Masters - Torneo preliminare"]
[White "Van Foreest, Jorden"]
[Black "Fressinet, Laurent"]
[WhiteFideId "1039784"]
[BlackFideId "608742"]
[WhiteElo "2682"]
[BlackElo "2689"]
[Result "1-0"]
[Round "5"]
[TimeControl "600+2"]
[Date "2023.03.13"]
[WhiteClock "0:04:03"]
[BlackClock "0:00:17"]

1. e4 {[%clk 0:10:01]}  e5 {[%clk 0:09:38]} 2. Nf3 {[%clk 0:10:02]}  Nc6 {[%clk 0:09:38]} 3. Bc4 {[%clk 0:10:03]}  Nf6 {[%clk 0:09:37]} 4. d3 {[%clk 0:10:03]}  Bc5 {[%clk 0:09:37]} 5. Nc3 {[%clk 0:10:01]}  d6 {[%clk 0:09:21]} 6. Na4 {[%clk 0:10:00]}  Bb6 {[%clk 0:09:09]} 7. c3 {[%clk 0:09:51]}  Be6 {[%clk 0:09:04]} 8. Bxe6 {[%clk 0:09:46]}  fxe6 {[%clk 0:09:06]} 9. O-O {[%clk 0:09:45]}  O-O {[%clk 0:08:53]} 10. b4 {[%clk 0:09:36]}  Qe8 {[%clk 0:08:37]} 11. b5 {[%clk 0:09:25]}  Nd8 {[%clk 0:07:57]} 12. Nxb6 {[%clk 0:09:19]}  axb6 {[%clk 0:07:59]} 13. a4 {[%clk 0:09:20]}  Nf7 {[%clk 0:07:02]} 14. c4 {[%clk 0:09:13]}  Qd7 {[%clk 0:06:46]} 15. Bb2 {[%clk 0:09:00]}  Nh8 {[%clk 0:06:32]} 16. Qe2 {[%clk 0:08:34]}  Qf7 {[%clk 0:06:02]} 17. Ra3 {[%clk 0:08:25]}  Qh5 {[%clk 0:05:46]} 18. Bc1 {[%clk 0:07:35]}  Nd7 {[%clk 0:05:26]} 19. Be3 {[%clk 0:07:17]}  Ng6 {[%clk 0:05:08]} 20. Nd4 {[%clk 0:07:09]}  Qxe2 {[%clk 0:04:39]} 21. Nxe2 {[%clk 0:07:11]}  Nc5 {[%clk 0:03:58]} 22. Bxc5 {[%clk 0:07:10]}  dxc5 {[%clk 0:03:58]} 23. g3 {[%clk 0:07:07]}  Rfd8 {[%clk 0:03:40]} 24. Rfa1 {[%clk 0:07:03]}  Ne7 {[%clk 0:03:00]} 25. Kf1 {[%clk 0:07:01]}  Nc8 {[%clk 0:02:33]} 26. Ng1 {[%clk 0:07:00]}  Nd6 {[%clk 0:02:15]} 27. a5 {[%clk 0:06:57]}  bxa5 {[%clk 0:01:43]} 28. Rxa5 {[%clk 0:06:59]}  Rxa5 {[%clk 0:01:43]} 29. Rxa5 {[%clk 0:07:01]}  b6 {[%clk 0:01:38]} 30. Ra7 {[%clk 0:06:53]}  Rc8 {[%clk 0:01:39]} 31. Ke2 {[%clk 0:06:47]}  Kf8 {[%clk 0:01:39]} 32. f4 {[%clk 0:06:22]}  exf4 {[%clk 0:01:28]} 33. gxf4 {[%clk 0:06:24]}  Ke7 {[%clk 0:01:29]} 34. Nf3 {[%clk 0:06:25]}  Nf7 {[%clk 0:01:29]} 35. Ke3 {[%clk 0:06:22]}  Kd7 {[%clk 0:01:29]} 36. h4 {[%clk 0:06:19]}  Rh8 {[%clk 0:01:14]} 37. Ra1 {[%clk 0:06:14]}  g6 {[%clk 0:01:09]} 38. Rg1 {[%clk 0:05:41]}  Ke7 {[%clk 0:01:05]} 39. Ra1 {[%clk 0:05:36]}  Kd7 {[%clk 0:01:05]} 40. Nh2 {[%clk 0:05:34]}  Nh6 {[%clk 0:00:57]} 41. Kf3 {[%clk 0:05:20]}  Rf8 {[%clk 0:00:55]} 42. Kg3 {[%clk 0:05:17]}  Ke7 {[%clk 0:00:55]} 43. Nf3 {[%clk 0:05:13]}  Nf7 {[%clk 0:00:55]} 44. Ra3 {[%clk 0:04:46]}  Rd8 {[%clk 0:00:42]} 45. Kf2 {[%clk 0:04:46]}  Rf8 {[%clk 0:00:41]} 46. Ke3 {[%clk 0:04:47]}  Kd7 {[%clk 0:00:33]} 47. Ra7 {[%clk 0:04:41]}  Rh8 {[%clk 0:00:31]} 48. d4 {[%clk 0:04:12]}  cxd4+ {[%clk 0:00:33]} 49. Kxd4 {[%clk 0:04:13]}  Kd6 {[%clk 0:00:33]} 50. e5+ {[%clk 0:04:06]}  Kd7 {[%clk 0:00:33]} 51. c5 {[%clk 0:04:08]}  bxc5+ {[%clk 0:00:27]} 52. Kxc5 {[%clk 0:04:10]}  Rb8 {[%clk 0:00:25]} 53. Nd2 {[%clk 0:04:11]}  Nd8 {[%clk 0:00:21]} 54. Ne4 {[%clk 0:04:04]}  Rb7 {[%clk 0:00:16]} 55. Nf6+ {[%clk 0:04:01]}  Ke7 {[%clk 0:00:17]} 56. Rxb7 {[%clk 0:04:01]}  Nxb7+ {[%clk 0:00:17]} 57. Kc6 {[%clk 0:04:03]} 1-0


[Site "Internet"]

[Event "Chessable Masters - Torneo preliminare"]
[White "Drygalov, Sergey"]
[Black "Wei, Yi"]
[WhiteFideId "24171743"]
[BlackFideId "8603405"]
[WhiteElo "2461"]
[BlackElo "2716"]
[Result "0-1"]
[Round "5"]
[TimeControl "600+2"]
[Date "2023.03.13"]
[WhiteClock "0:00:07"]
[BlackClock "0:00:52"]

1. d4 {[%clk 0:10:00]}  Nf6 {[%clk 0:10:00]} 2. c4 {[%clk 0:10:01]}  e6 {[%clk 0:10:01]} 3. Nf3 {[%clk 0:09:58]}  d5 {[%clk 0:10:01]} 4. Nc3 {[%clk 0:09:58]}  c6 {[%clk 0:09:59]} 5. e3 {[%clk 0:09:59]}  Nbd7 {[%clk 0:09:59]} 6. Qc2 {[%clk 0:10:00]}  Bd6 {[%clk 0:10:00]} 7. Bd3 {[%clk 0:10:01]}  O-O {[%clk 0:10:00]} 8. O-O {[%clk 0:10:01]}  dxc4 {[%clk 0:10:01]} 9. Bxc4 {[%clk 0:10:03]}  a6 {[%clk 0:10:03]} 10. Rd1 {[%clk 0:09:16]}  c5 {[%clk 0:09:20]} 11. dxc5 {[%clk 0:08:46]}  Bxc5 {[%clk 0:09:21]} 12. Bd3 {[%clk 0:07:41]}  Qe7 {[%clk 0:09:00]} 13. a3 {[%clk 0:07:38]}  b5 {[%clk 0:08:43]} 14. b4 {[%clk 0:06:48]}  Bb6 {[%clk 0:08:31]} 15. Ne4 {[%clk 0:05:41]}  Bb7 {[%clk 0:08:23]} 16. Nxf6+ {[%clk 0:05:25]}  Nxf6 {[%clk 0:08:23]} 17. Bb2 {[%clk 0:05:24]}  Rac8 {[%clk 0:08:01]} 18. Qe2 {[%clk 0:05:25]}  Rfd8 {[%clk 0:07:54]} 19. Ne5 {[%clk 0:05:24]}  Ne4 {[%clk 0:07:30]} 20. Rac1 {[%clk 0:05:12]}  f6 {[%clk 0:07:15]} 21. Nf3 {[%clk 0:05:10]}  e5 {[%clk 0:06:50]} 22. Rxc8 {[%clk 0:04:15]}  Rxc8 {[%clk 0:06:50]} 23. h3 {[%clk 0:03:40]}  Nxf2 {[%clk 0:06:00]} 24. Kxf2 {[%clk 0:02:29]}  e4 {[%clk 0:06:00]} 25. Bb1 {[%clk 0:02:27]}  exf3 {[%clk 0:05:46]} 26. gxf3 {[%clk 0:02:16]}  Kf8 {[%clk 0:03:07]} 27. Kg2 {[%clk 0:01:05]}  f5 {[%clk 0:02:42]} 28. Qd3 {[%clk 0:00:52]}  Qg5+ {[%clk 0:02:01]} 29. Kf2 {[%clk 0:00:40]}  f4 {[%clk 0:01:49]} 30. Qd6+ {[%clk 0:00:28]}  Kg8 {[%clk 0:01:50]} 31. Qe6+ {[%clk 0:00:17]}  Kh8 {[%clk 0:01:49]} 32. Qxb6 {[%clk 0:00:18]}  Qg3+ {[%clk 0:01:49]} 33. Kf1 {[%clk 0:00:18]}  Qxf3+ {[%clk 0:01:46]} 34. Ke1 {[%clk 0:00:19]}  Qg3+ {[%clk 0:01:44]} 35. Kd2 {[%clk 0:00:11]}  Bf3 {[%clk 0:00:48]} 36. Rc1 {[%clk 0:00:04]}  Qf2+ {[%clk 0:00:49]} 37. Kd3 {[%clk 0:00:05]}  Qe2+ {[%clk 0:00:51]} 38. Kd4 {[%clk 0:00:07]}  Qxe3# {[%clk 0:00:52]} 0-1


[Site "Internet"]

[Event "Chessable Masters - Torneo preliminare"]
[White "Chigaev, Maksim"]
[Black "Yu, Yangyi"]
[WhiteFideId "4108116"]
[BlackFideId "8603820"]
[WhiteElo "2568"]
[BlackElo "2734"]
[Result "1-0"]
[Round "5"]
[TimeControl "600+2"]
[Date "2023.03.13"]
[WhiteClock "0:00:28"]
[BlackClock "0:00:07"]

1. e4 {[%clk 0:09:49]}  d6 {[%clk 0:09:57]} 2. d4 {[%clk 0:09:50]}  Nf6 {[%clk 0:09:58]} 3. Nc3 {[%clk 0:09:51]}  e5 {[%clk 0:10:00]} 4. Nf3 {[%clk 0:09:53]}  Nbd7 {[%clk 0:10:00]} 5. Rg1 {[%clk 0:09:55]}  Be7 {[%clk 0:09:53]} 6. g4 {[%clk 0:09:52]}  h6 {[%clk 0:09:54]} 7. Be3 {[%clk 0:09:47]}  c6 {[%clk 0:09:51]} 8. h4 {[%clk 0:09:30]}  Qa5 {[%clk 0:09:04]} 9. Qd2 {[%clk 0:09:17]}  exd4 {[%clk 0:08:17]} 10. Nxd4 {[%clk 0:08:50]}  Ne5 {[%clk 0:08:17]} 11. Be2 {[%clk 0:08:25]}  Nexg4 {[%clk 0:06:54]} 12. O-O-O {[%clk 0:08:11]}  Bd7 {[%clk 0:03:25]} 13. Kb1 {[%clk 0:08:00]}  Nxe3 {[%clk 0:03:11]} 14. Qxe3 {[%clk 0:07:59]}  g6 {[%clk 0:03:11]} 15. f4 {[%clk 0:07:54]}  h5 {[%clk 0:02:47]} 16. Rg5 {[%clk 0:07:21]}  Qb6 {[%clk 0:00:29]} 17. e5 {[%clk 0:07:13]}  Nd5 {[%clk 0:00:30]} 18. Nxd5 {[%clk 0:06:47]}  cxd5 {[%clk 0:00:32]} 19. e6 {[%clk 0:02:44]}  fxe6 {[%clk 0:00:28]} 20. Rxg6 {[%clk 0:02:44]}  O-O-O {[%clk 0:00:27]} 21. Qc3+ {[%clk 0:00:51]}  Qc5 {[%clk 0:00:19]} 22. Qg3 {[%clk 0:00:45]}  Rde8 {[%clk 0:00:04]} 23. Nxe6 {[%clk 0:00:17]}  Bxe6 {[%clk 0:00:06]} 24. Rxe6 {[%clk 0:00:19]}  Bd8 {[%clk 0:00:05]} 25. Rxe8 {[%clk 0:00:13]}  Rxe8 {[%clk 0:00:07]} 26. Bxh5 {[%clk 0:00:14]}  Rf8 {[%clk 0:00:06]} 27. Bg4+ {[%clk 0:00:16]}  Kb8 {[%clk 0:00:07]} 28. h5 {[%clk 0:00:15]}  Qb4 {[%clk 0:00:06]} 29. Rf1 {[%clk 0:00:12]}  Bf6 {[%clk 0:00:06]} 30. Qb3 {[%clk 0:00:11]}  Qe4 {[%clk 0:00:03]} 31. Bf3 {[%clk 0:00:09]}  Qc4 {[%clk 0:00:05]} 32. Rh1 {[%clk 0:00:07]}  Qxb3 {[%clk 0:00:02]} 33. axb3 {[%clk 0:00:09]}  d4 {[%clk 0:00:03]} 34. Be4 {[%clk 0:00:09]}  Re8 {[%clk 0:00:04]} 35. Bd3 {[%clk 0:00:10]}  Rf8 {[%clk 0:00:02]} 36. h6 {[%clk 0:00:11]}  Bh8 {[%clk 0:00:04]} 37. Rg1 {[%clk 0:00:09]}  Kc7 {[%clk 0:00:03]} 38. h7 {[%clk 0:00:10]}  Kd7 {[%clk 0:00:03]} 39. Rg8 {[%clk 0:00:12]}  Ke7 {[%clk 0:00:04]} 40. Be4 {[%clk 0:00:10]}  b6 {[%clk 0:00:03]} 41. Kc1 {[%clk 0:00:08]}  Bf6 {[%clk 0:00:03]} 42. Kd2 {[%clk 0:00:08]}  a5 {[%clk 0:00:04]} 43. Kd3 {[%clk 0:00:09]}  Kf7 {[%clk 0:00:05]} 44. Bd5+ {[%clk 0:00:11]}  Ke7 {[%clk 0:00:07]} 45. f5 {[%clk 0:00:11]}  Be5 {[%clk 0:00:07]} 46. Be6 {[%clk 0:00:13]}  b5 {[%clk 0:00:07]} 47. Bd5 {[%clk 0:00:13]}  Rxf5 {[%clk 0:00:06]} 48. Bc6 {[%clk 0:00:13]}  Rh5 {[%clk 0:00:07]} 49. Be4 {[%clk 0:00:14]}  Rh3+ {[%clk 0:00:08]} 50. Kd2 {[%clk 0:00:15]}  Rh2+ {[%clk 0:00:09]} 51. Ke1 {[%clk 0:00:15]}  d5 {[%clk 0:00:09]} 52. Bd3 {[%clk 0:00:16]}  a4 {[%clk 0:00:10]} 53. bxa4 {[%clk 0:00:17]}  bxa4 {[%clk 0:00:12]} 54. Ra8 {[%clk 0:00:18]}  Rh1+ {[%clk 0:00:11]} 55. Kf2 {[%clk 0:00:19]}  Rh2+ {[%clk 0:00:12]} 56. Kf3 {[%clk 0:00:20]}  Rh3+ {[%clk 0:00:10]} 57. Kg4 {[%clk 0:00:21]}  Rh1 {[%clk 0:00:09]} 58. Rxa4 {[%clk 0:00:21]}  Kd6 {[%clk 0:00:08]} 59. Ra6+ {[%clk 0:00:22]}  Kc5 {[%clk 0:00:07]} 60. Re6 {[%clk 0:00:24]}  Bh8 {[%clk 0:00:07]} 61. Re8 {[%clk 0:00:25]}  Bg7 {[%clk 0:00:08]} 62. Kg5 {[%clk 0:00:26]}  Kd6 {[%clk 0:00:08]} 63. Kg6 {[%clk 0:00:27]}  Be5 {[%clk 0:00:05]} 64. Rxe5 {[%clk 0:00:26]}  Kxe5 {[%clk 0:00:06]} 65. Kg7 {[%clk 0:00:28]}  Rg1+ {[%clk 0:00:07]} 66. Bg6 {[%clk 0:00:28]} 1-0


[Site "Internet"]

[Event "Chessable Masters - Torneo preliminare"]
[White "Petrov, Nikita"]
[Black "Mamedyarov, Shakhriyar"]
[WhiteFideId "4101286"]
[BlackFideId "13401319"]
[WhiteElo "2514"]
[BlackElo "2703"]
[Result "1/2-1/2"]
[Round "5"]
[TimeControl "600+2"]
[Date "2023.03.13"]
[WhiteClock "0:01:24"]
[BlackClock "0:03:47"]

1. d4 {[%clk 0:10:00]}  d5 {[%clk 0:09:59]} 2. Nf3 {[%clk 0:09:57]}  c5 {[%clk 0:09:55]} 3. c4 {[%clk 0:09:57]}  cxd4 {[%clk 0:09:55]} 4. cxd5 {[%clk 0:09:58]}  Qxd5 {[%clk 0:09:56]} 5. Nc3 {[%clk 0:09:58]}  Qa5 {[%clk 0:09:57]} 6. Nxd4 {[%clk 0:09:57]}  Nf6 {[%clk 0:09:58]} 7. a3 {[%clk 0:09:42]}  g6 {[%clk 0:09:45]} 8. Nb5 {[%clk 0:08:31]}  Bd7 {[%clk 0:07:38]} 9. b4 {[%clk 0:08:11]}  Qd8 {[%clk 0:07:39]} 10. Bf4 {[%clk 0:08:08]}  Na6 {[%clk 0:07:40]} 11. e3 {[%clk 0:07:52]}  Bg7 {[%clk 0:07:41]} 12. Be2 {[%clk 0:07:50]}  O-O {[%clk 0:07:41]} 13. O-O {[%clk 0:07:47]}  Bxb5 {[%clk 0:06:51]} 14. Bxb5 {[%clk 0:06:34]}  Nh5 {[%clk 0:06:42]} 15. Rc1 {[%clk 0:06:24]}  Nxf4 {[%clk 0:06:34]} 16. exf4 {[%clk 0:06:25]}  Nc7 {[%clk 0:05:41]} 17. Bc4 {[%clk 0:06:18]}  Rc8 {[%clk 0:05:36]} 18. Qf3 {[%clk 0:05:14]}  Bxc3 {[%clk 0:04:39]} 19. Rxc3 {[%clk 0:04:54]}  e6 {[%clk 0:04:40]} 20. Rd3 {[%clk 0:04:27]}  Qf6 {[%clk 0:04:35]} 21. Qxb7 {[%clk 0:04:08]}  Qxf4 {[%clk 0:04:35]} 22. Bb3 {[%clk 0:04:02]}  Rb8 {[%clk 0:03:54]} 23. Qxa7 {[%clk 0:03:11]}  Ra8 {[%clk 0:03:55]} 24. Qc5 {[%clk 0:03:13]}  Rxa3 {[%clk 0:03:55]} 25. Rf3 {[%clk 0:03:13]}  Na6 {[%clk 0:03:44]} 26. Qxf8+ {[%clk 0:03:09]}  Kxf8 {[%clk 0:03:45]} 27. Rxf4 {[%clk 0:03:10]}  Rxb3 {[%clk 0:03:47]} 28. g3 {[%clk 0:01:31]}  Nxb4 {[%clk 0:03:47]} 29. Rd1 {[%clk 0:01:24]}  Nd5 {[%clk 0:03:47]} 30. Rfd4 {[%clk 0:01:24]}  Kg7 {[%clk 0:03:47]} 1/2-1/2


[Site "Internet"]

[Event "Chessable Masters - Torneo preliminare"]
[White "Pantsulaia, Levan"]
[Black "Bortnyk, Olexandr"]
[WhiteFideId "13602071"]
[BlackFideId "14120828"]
[WhiteElo "2533"]
[BlackElo "2643"]
[Result "1-0"]
[Round "5"]
[TimeControl "600+2"]
[Date "2023.03.13"]
[WhiteClock "0:03:05"]
[BlackClock "0:00:50"]

1. Nf3 {[%clk 0:10:01]}  Nf6 {[%clk 0:09:58]} 2. c4 {[%clk 0:09:58]}  d6 {[%clk 0:09:59]} 3. Nc3 {[%clk 0:09:56]}  g6 {[%clk 0:10:00]} 4. g3 {[%clk 0:09:57]}  Bg7 {[%clk 0:10:02]} 5. Bg2 {[%clk 0:09:59]}  O-O {[%clk 0:10:03]} 6. O-O {[%clk 0:09:57]}  e5 {[%clk 0:09:37]} 7. d3 {[%clk 0:09:55]}  Bd7 {[%clk 0:09:32]} 8. Rb1 {[%clk 0:09:42]}  a5 {[%clk 0:09:29]} 9. a3 {[%clk 0:09:42]}  a4 {[%clk 0:09:21]} 10. Bg5 {[%clk 0:09:22]}  Qc8 {[%clk 0:09:09]} 11. c5 {[%clk 0:08:12]}  Bc6 {[%clk 0:08:16]} 12. cxd6 {[%clk 0:08:11]}  cxd6 {[%clk 0:08:16]} 13. Bxf6 {[%clk 0:08:10]}  Bxf6 {[%clk 0:08:17]} 14. e4 {[%clk 0:08:02]}  Nd7 {[%clk 0:07:53]} 15. d4 {[%clk 0:08:03]}  Nb6 {[%clk 0:07:53]} 16. Rc1 {[%clk 0:07:52]}  Qg4 {[%clk 0:07:18]} 17. h3 {[%clk 0:06:22]}  Qh5 {[%clk 0:07:16]} 18. Qd3 {[%clk 0:06:00]}  Rfc8 {[%clk 0:06:33]} 19. Rfd1 {[%clk 0:05:48]}  Bd7 {[%clk 0:06:05]} 20. Nb5 {[%clk 0:05:07]}  exd4 {[%clk 0:03:54]} 21. Nxd6 {[%clk 0:04:56]}  Rxc1 {[%clk 0:02:45]} 22. Rxc1 {[%clk 0:04:58]}  Bxh3 {[%clk 0:02:46]} 23. Bxh3 {[%clk 0:04:44]}  Qxh3 {[%clk 0:02:46]} 24. Qb5 {[%clk 0:04:45]}  Nd7 {[%clk 0:02:21]} 25. Rc7 {[%clk 0:04:41]}  Nf8 {[%clk 0:01:27]} 26. Nxf7 {[%clk 0:04:13]}  Qe6 {[%clk 0:01:01]} 27. N3g5 {[%clk 0:03:05]}  Qb3 {[%clk 0:00:49]} 28. Nh6+ {[%clk 0:03:04]}  Kh8 {[%clk 0:00:50]} 29. Qc5 {[%clk 0:03:05]} 1-0


[Site "Internet"]